Cogmind - Beta 12 @@@ ROGUE MODE // 2023.05.28 @ 22:05:13 Player: Mr Goldstein Result: Self-destructed Performance ------------- Evolutions (3) 1500 Regions Visited (8) 1600 Robots Destroyed (4) 20 Value Destroyed (108) 108 Prototype IDs (2) 40 Alien Tech Used (0) 0 Bonus (834) 834 TOTAL SCORE: 4102 Bonus ------- Pacifist 834 Cogmind --------- Core Integrity 292/700 Matter 249/300 Energy 100/100 System Corruption 0% Temperature Cool (0) Movement Core (50) Location -7/Lower Caves Parts ------- > --- POWER (1) -------- (None) > --- PROPULSION (5) --- (None) > --- UTILITY (5) ------ Core Analyzer Core Analyzer > --- WEAPON (2) ------- (None) > --- INVENTORY (5) ---- Micro Nuclear Core Small Storage Unit Improved Grenade Launcher Heavy Missile Launcher Peak State ------------ > --- POWER ------------ (None) > --- PROPULSION ------- Advanced Treads Advanced Treads > --- UTILITY ---------- Core Analyzer Core Analyzer Improved Light Armor Plating Hacking Suite Hacking Suite > --- WEAPON ----------- (None) > --- INVENTORY -------- Micro Nuclear Core Small Storage Unit Improved Grenade Launcher Improved Grenade Launcher Heavy Missile Launcher [Rating: 24] Favorites ----------- Power None Propulsion Advanced Treads Treads Advanced Treads Utility Core Analyzer Processor Core Analyzer Hackware Hacking Suite Protection Improved Light Armor Plating Weapon Improved Grenade Launcher Launcher Improved Grenade Launcher Build | -11 -10 -9 -8 -7 -7 -7 -7 -7 ------- Run | Jun Mat Mat Mat Fac Was Fac Low Low Slots Evolved 6 | . . 2 2 2 . . . . Power . | . . . . . . . . . Propulsion 3 | . . 1 1 1 . . . . Utility 3 | . . 1 1 1 . . . . Weapon . | . . . . . . . . . Parts Attached 12 | . . 3 3 1 . 2 1 2 Power . | . . . . . . . . . Engine . | . . . . . . . . . Core . | . . . . . . . . . Reactor . | . . . . . . . . . Propulsion 4 | . . 3 . 1 . . . . Treads 4 | . . 3 . 1 . . . . Leg . | . . . . . . . . . Wheel . | . . . . . . . . . Hover . | . . . . . . . . . Flight . | . . . . . . . . . Utility 6 | . . . 3 . . 2 1 . Device . | . . . . . . . . . Storage . | . . . . . . . . . Processor 2 | . . . 2 . . . . . Hackware 2 | . . . . . . 1 1 . Protection 2 | . . . 1 . . 1 . . Artifact . | . . . . . . . . . Weapon 2 | . . . . . . . . 2 Energy Gun . | . . . . . . . . . Energy Cannon . | . . . . . . . . . Ballistic Gun . | . . . . . . . . . Ballistic Cannon . | . . . . . . . . . Launcher 2 | . . . . . . . . 2 Special Weapon . | . . . . . . . . . Impact Weapon . | . . . . . . . . . Slashing Weapon . | . . . . . . . . . Piercing Weapon . | . . . . . . . . . Special Melee Weapon . | . . . . . . . . . Unidentified Prototypes . | . . . . . . . . . Parts Lost 9 | . . . . 1 . 2 . 6 Power . | . . . . . . . . . Propulsion 4 | . . . . . . 2 . 2 Utility 4 | . . . . 1 . . . 3 Weapon 1 | . . . . . . . . 1 Highest Loss Streak 4 | . . . . 1 . 2 . 4 To Critical Strikes . | . . . . . . . . . Average Slot Usage (%) 38 | . . 31 42 46 46 36 51 28 Treads 19 | . . 31 27 25 30 20 15 2 Processor 11 | . . . 7 15 15 15 15 15 Hackware 3 | . . . . . . . 13 7 Protection 2 | . . . 7 4 . . 7 1 Naked Turns 34 | . 29 5 . . . . . . Heaviest Build 6 | . . . 2 2 . 3 3 6 Greatest Support 66 | 3 3 66 3 3 3 3 3 3 Greatest Overweight (x) 1 | . . . . . . . . 1 Average Overweight (x) . | . . . . . . . . . Largest Inventory Capacity 5 | 5 5 5 5 5 5 5 5 5 Average Capacity 5 | 5 5 5 5 5 5 5 5 5 Most Carried 5 | . . 5 5 5 4 5 5 5 Average Carried 4 | . . 3 5 4 4 4 5 4 Final Capacity 5 | 5 5 5 5 5 5 5 5 5 Final Carried 5 | . . 5 5 4 4 5 5 4 Class Distribution -------------------- 83% | Mutant 16% | Hacker-Mutant Dominant Class ---------------- Mutant | -10/Materials Mutant | -9/Materials Mutant | -8/Materials Mutant | -7/Factory Mutant | -7/Waste Mutant | -7/Factory Hacker-Mutant | -7/Lower Caves Mutant | -7/Lower Caves Resources | -11 -10 -9 -8 -7 -7 -7 -7 -7 ----------- Run | Jun Mat Mat Mat Fac Was Fac Low Low Matter Collected 281 | 200 . . . 47 . . 23 11 Remotely . | . . . . . . . . . Salvage Created 47 | . . . . . . . . 47 Parts 2 | . . . . . . . . 2 Haulers Intercepted . | . . . . . . . . . Recyclers Shooed . | . . . . . . . . . Parts Field Recycled . | . . . . . . . . . Retrieved Matter . | . . . . . . . . . Parts Self-Destructed 1 | . . . . . . . . 1 Prevented . | . . . . . . . . . Kills | -11 -10 -9 -8 -7 -7 -7 -7 -7 ------- Run | Jun Mat Mat Mat Fac Was Fac Low Low Combat Hostiles Destroyed 4 | . . . . . . . . 4 AOE 4 | . . . . . . . . 4 Classes Destroyed 1 | . . . . . . . . 1 Swarmer 4 | . . . . . . . . 4 Best Kill Streak 3 | . . . . . . . . 3 Combat Bots Only 3 | . . . . . . . . 3 Max Kills in Single Turn 2 | . . . . . . . . 2 Gunslinging . | . . . . . . . . . Exploded 2 | . . . . . . . . 2 Melee . | . . . . . . . . . Uniques/NPCs Destroyed . | . . . . . . . . . Combat | -11 -10 -9 -8 -7 -7 -7 -7 -7 -------- Run | Jun Mat Mat Mat Fac Was Fac Low Low Damage Taken 1672 | . 102 277 29 251 . 297 88 628 Core 571 | . 102 61 . 48 . 99 32 229 Absorbed by Shields . | . . . . . . . . . Redirected to Shielding 102 | . . . 18 84 . . . . Core Remaining (%) 85 | 100 59 84 100 . . . . . Volleys Fired 4 | . . . . . . . . 4 Largest 1 | . . . . . . . . 1 Hottest 36 | . . . . . . . . 36 Shots Fired 4 | . . . . . . . . 4 Gun . | . . . . . . . . . Cannon . | . . . . . . . . . Launcher 4 | . . . . . . . . 4 Special . | . . . . . . . . . Kinetic . | . . . . . . . . . Thermal . | . . . . . . . . . Explosive 4 | . . . . . . . . 4 Electromagnetic . | . . . . . . . . . Robot Hit Streak 2 | . . . . . . . . 2 Robot Miss Streak 1 | . . . . . . . . 1 Penetration Max . | . . . . . . . . . Secondary Targets . | . . . . . . . . . Shots Hit Robots 2 | . . . . . . . . 2 Core Hits 4 | . . 1 . . . . . 3 Critical Kills . | . . . . . . . . . Critical Parts Destroyed . | . . . . . . . . . Critical Strikes . | . . . . . . . . . Melee Attacks . | . . . . . . . . . Impact . | . . . . . . . . . Slashing . | . . . . . . . . . Piercing . | . . . . . . . . . Sneak Attacks . | . . . . . . . . . Combat Hostiles . | . . . . . . . . . Follow-up Attacks . | . . . . . . . . . Damage Inflicted 318 | . . 14 . . . . . 304 Guns . | . . . . . . . . . Cannons . | . . . . . . . . . Explosions 304 | . . . . . . . . 304 Melee . | . . . . . . . . . Ramming 14 | . . 14 . . . . . . Kinetic . | . . . . . . . . . Thermal . | . . . . . . . . . Explosive 304 | . . . . . . . . 304 Electromagnetic . | . . . . . . . . . Impact . | . . . . . . . . . Slashing . | . . . . . . . . . Piercing . | . . . . . . . . . Highest Corruption . | . . . . . . . . . Average Corruption . | . . . . . . . . . Corruption Purged . | . . . . . . . . . Corruption Blocked . | . . . . . . . . . Overload Shots . | . . . . . . . . . Overflow Damage 22 | . . . . . . . . 22 Projectiles . | . . . . . . . . . Explosions 22 | . . . . . . . . 22 Melee . | . . . . . . . . . Knockbacks . | . . . . . . . . . Impact . | . . . . . . . . . Kinetic . | . . . . . . . . . Secondary . | . . . . . . . . . Self-Inflicted Damage 43 | . . 6 . . . . . 37 Shots 1 | . . . . . . . . 1 Rammed 5 | . . 4 . . . 1 . . Targets Rammed 5 | . . 4 . . . 1 . . Kicked . | . . . . . . . . . Crushed . | . . . . . . . . . Highest Temperature 4 | . . . . . . . . 4 Average Temperature 4 | . . . . . . . . 4 Received Heat Transfer 567 | . 30 126 18 102 . 78 21 192 Siege Activations . | . . . . . . . . . Robots Corrupted . | . . . . . . . . . Combat Hostiles . | . . . . . . . . . Parts Fried . | . . . . . . . . . Impact Corruptions . | . . . . . . . . . Robots Melted . | . . . . . . . . . Combat Hostiles . | . . . . . . . . . Parts Melted . | . . . . . . . . . Heat Transferred . | . . . . . . . . . Parts Sabotaged . | . . . . . . . . . Parts Stolen . | . . . . . . . . . Parts Stripped . | . . . . . . . . . Power Chain Reactions . | . . . . . . . . . Missiles Intercepted . | . . . . . . . . . Alert | -11 -10 -9 -8 -7 -7 -7 -7 -7 ------- Run | Jun Mat Mat Mat Fac Was Fac Low Low Peak Influence 335 | . 120 335 156 290 131 234 . . Initial 141 | . . 50 141 70 101 91 . . Average 134 | . 54 122 144 154 115 150 . . Maximum Alert Level 1 | . . 1 . 1 . 1 . . Low Security (%) 84 | 100 100 85 100 87 100 73 . . Level 1 15 | . . 14 . 12 . 26 . . Level 2 . | . . . . . . . . . Level 3 . | . . . . . . . . . Level 4 . | . . . . . . . . . Level 5 . | . . . . . . . . . High Security . | . . . . . . . . . Max Security . | . . . . . . . . . Squads Dispatched 11 | . 2 2 . 4 . 3 . . Investigation 9 | . 2 2 . 3 . 2 . . Extermination . | . . . . . . . . . Reinforcement 2 | . . . . 1 . 1 . . Assault . | . . . . . . . . . Garrison . | . . . . . . . . . Intercept . | . . . . . . . . . Searches Triggered . | . . . . . . . . . Construction Impeded . | . . . . . . . . . Haulers Reinforced . | . . . . . . . . . Active Scanning Responses . | . . . . . . . . . Cargo Convoy Interrupts . | . . . . . . . . . Stealth | -11 -10 -9 -8 -7 -7 -7 -7 -7 --------- Run | Jun Mat Mat Mat Fac Was Fac Low Low Distress Signals 4 | . 1 1 . 1 . 1 . . Communications Jammed . | . . . . . . . . . Distress Signals . | . . . . . . . . . Times Spotted 79 | . 8 14 2 15 5 12 5 18 Peak Tracking Total 18 | . 8 18 2 9 5 6 2 8 Tactical Retreats 10 | . . 3 1 1 . 2 1 2 Traps | -11 -10 -9 -8 -7 -7 -7 -7 -7 ------- Run | Jun Mat Mat Mat Fac Was Fac Low Low Traps Triggered 1 | . . . . 1 . . . . Indirectly . | . . . . . . . . . Trap Hack Attempts . | . . . . . . . . . Triggered . | . . . . . . . . . Disarmed . | . . . . . . . . . Reprogrammed . | . . . . . . . . . Reused . | . . . . . . . . . Traps Extracted . | . . . . . . . . . Installed . | . . . . . . . . . Triggered . | . . . . . . . . . Machines | -11 -10 -9 -8 -7 -7 -7 -7 -7 ---------- Run | Jun Mat Mat Mat Fac Was Fac Low Low Machines Disabled . | . . . . . . . . . Max in Single Turn . | . . . . . . . . . Machines Repaired . | . . . . . . . . . Machines Sabotaged . | . . . . . . . . . Overloaded Fab Kills 2 | . . . . 2 . . . . Hacking | -11 -10 -9 -8 -7 -7 -7 -7 -7 --------- Run | Jun Mat Mat Mat Fac Was Fac Low Low Machines Accessed 11 | . 2 2 . 3 . 4 . . Terminals 4 | . . . . . . 4 . . Fabricators 1 | . . . . 1 . . . . Repair Stations . | . . . . . . . . . Recycling Units 6 | . 2 2 . 2 . . . . Scanalyzers . | . . . . . . . . . Garrison Access . | . . . . . . . . . Total Hacks 18 | . 2 2 . 5 . 9 . . Successful 10 | . 2 2 . 3 . 3 . . Failed 8 | . . . . 2 . 6 . . Catastrophic 3 | . . . . 1 . 2 . . Database Lockouts . | . . . . . . . . . Manual 18 | . 4 2 . 5 . 7 . . Terminals 9 | . . . . . . 9 . . Fabricators 1 | . . . . 1 . . . . Repair Stations . | . . . . . . . . . Recycling Units 8 | . 2 2 . 4 . . . . Scanalyzers . | . . . . . . . . . Garrison Access . | . . . . . . . . . Terminal Hacks 3 | . . . . . . 3 . . Prototype ID Bank 1 | . . . . . . 1 . . Branch Access Points 1 | . . . . . . 1 . . Registered Components 1 | . . . . . . 1 . . Fabricator Hacks . | . . . . . . . . . Repair Station Hacks . | . . . . . . . . . Recycling Unit Hacks . | . . . . . . . . . Scanalyzer . | . . . . . . . . . Garrison Access Hacks . | . . . . . . . . . Unauthorized Hacks 7 | . 2 2 . 3 . . . . Terminals . | . . . . . . . . . Fabricators 1 | . . . . 1 . . . . Overload 1 | . . . . 1 . . . . Repair Stations . | . . . . . . . . . Recycling Units 6 | . 2 2 . 2 . . . . Tunnel 6 | . 2 2 . 2 . . . . Scanalyzers . | . . . . . . . . . Garrison Access . | . . . . . . . . . Data Cores Recovered . | . . . . . . . . . Used . | . . . . . . . . . Hacking Detections 4 | . 1 . . 1 . 2 . . Full Trace Events 2 | . . . . . . 2 . . Feedback Events . | . . . . . . . . . Feedback Blocked . | . . . . . . . . . Robot Schematics Acquired . | . . . . . . . . . Robots Built . | . . . . . . . . . Authchips . | . . . . . . . . . Time . | . . . . . . . . . Total Robot Build Rating . | . . . . . . . . . Part Schematics Acquired . | . . . . . . . . . Parts Built . | . . . . . . . . . Authchips . | . . . . . . . . . Time . | . . . . . . . . . Total Part Build Rating . | . . . . . . . . . Parts Repaired . | . . . . . . . . . Time . | . . . . . . . . . Parts Recycled . | . . . . . . . . . Recycled Matter . | . . . . . . . . . Retrieved Matter . | . . . . . . . . . Retrieved Components . | . . . . . . . . . Parts Scanalyzed . | . . . . . . . . . Part Schematics Acquired . | . . . . . . . . . Parts Damaged . | . . . . . . . . . Bothacking | -11 -10 -9 -8 -7 -7 -7 -7 -7 ------------ Run | Jun Mat Mat Mat Fac Was Fac Low Low Used RIF Installer . | . . . . . . . . . Robots Hacked . | . . . . . . . . . Non-combat . | . . . . . . . . . Combat . | . . . . . . . . . Robot Hacks Applied . | . . . . . . . . . Relay Couplers Released . | . . . . . . . . . Fabnet Peak Effective % . | . . . . . . . . . Robots Rewired . | . . . . . . . . . Allies Hacked . | . . . . . . . . . Hacks Repelled . | . . . . . . . . . Allies | -11 -10 -9 -8 -7 -7 -7 -7 -7 -------- Run | Jun Mat Mat Mat Fac Was Fac Low Low Total Allies . | . . . . . . . . . Largest Group . | . . . . . . . . . Highest-Rated Group . | . . . . . . . . . Highest-Rated Ally . | . . . . . . . . . Total Orders . | . . . . . . . . . Ally Attacks . | . . . . . . . . . Total Damage . | . . . . . . . . . Kills . | . . . . . . . . . Allies Corrupted . | . . . . . . . . . Allies Melted . | . . . . . . . . . Intel | -11 -10 -9 -8 -7 -7 -7 -7 -7 ------- Run | Jun Mat Mat Mat Fac Was Fac Low Low Robot Analysis Total . | . . . . . . . . . Derelict Logs Recovered 2 | . . . . . . . 1 1 Drone Launches . | . . . . . . . . . Drone Recoveries . | . . . . . . . . . Exploration | -11 -10 -9 -8 -7 -7 -7 -7 -7 ------------- Run | Jun Mat Mat Mat Fac Was Fac Low Low Turns Passed 867 | 13 29 115 62 109 42 233 159 105 Spaces Moved 1589 | 26 57 183 114 212 83 450 305 159 Core 1578 | 26 57 172 114 212 83 450 305 159 Treads 11 | . . 11 . . . . . . Legs . | . . . . . . . . . Wheels . | . . . . . . . . . Hover . | . . . . . . . . . Flight . | . . . . . . . . . Fastest Speed 50 | 50 50 50 50 50 50 50 50 50 Average Speed 50 | 50 50 55 50 50 50 50 50 50 Slowest Speed 145 | 50 50 145 50 50 50 50 50 100 Overloaded Moves . | . . . . . . . . . Propulsion Burnouts . | . . . . . . . . . Robots Hopped . | . . . . . . . . . Cave-ins Triggered . | . . . . . . . . . Exploration Rate (%) 30 | 4 20 26 14 12 89 25 57 30 Regions Visited 8 Branch Regions 2 Pre-discovered Areas 6 | . 2 2 . 2 . . . . Known Exits Taken 1 | . . . . . . 1 . . Unknown Exits Taken 5 | 1 1 1 1 . . . 1 . Scrap Searched 3 | . . . . . . . 2 1 Spaces Dug . | . . . . . . . . . Terrain Destroyed 27 | . . . . . . . . 27 Melee . | . . . . . . . . . Projectile . | . . . . . . . . . AOE 27 | . . . . . . . . 27 Terrain Rammed . | . . . . . . . . . Walls Destroyed . | . . . . . . . . . Machines Disabled . | . . . . . . . . . Actions | -11 -10 -9 -8 -7 -7 -7 -7 -7 --------- Run | Jun Mat Mat Mat Fac Was Fac Low Low Total 1636 | 25 56 194 116 217 82 457 310 179 Wait 18 | . . . . . . . 5 13 Move 1583 | 25 56 183 113 212 82 449 304 159 Hop . | . . . . . . . . . Pick Up 10 | . . 5 . 2 . 3 . . Fast Attach 9 | . . 3 3 . . 2 1 . Attach 3 | . . . . 1 . . . 2 Detach 1 | . . . . . . . . 1 Swap . | . . . . . . . . . Drop 4 | . . . . 2 . 2 . . Fire 4 | . . . . . . . . 4 Melee . | . . . . . . . . . Ram 4 | . . 3 . . . 1 . . Kick . | . . . . . . . . . Crush . | . . . . . . . . . Escape Stasis . | . . . . . . . . . Rewire . | . . . . . . . . . Trap . | . . . . . . . . . Miscellaneous . | . . . . . . . . . Route ------- -11/Junkyard -10/Materials -9/Materials -8/Materials -7/Factory -7/Waste -7/Factory (discovered 4 exits: [*Fac x2] / *Low x2) -7/Lower Caves -7/Lower Caves (discovered 1 exit: Zio) History --------- Turn | Location | Event 5 | -11/Junkyard | Discovered new exit (range 15) 14 | -11/Junkyard | Entered Materials 33 | -10/Materials | Discovered new exit (range 13) 43 | -10/Materials | Entered another Materials area 43 | -9/Materials | Evolved 2 slots: Propulsion x1, Utility x1 150 | -9/Materials | Discovered new exit (range 15) 158 | -9/Materials | Entered another Materials area 158 | -8/Materials | Evolved 2 slots: Propulsion x1, Utility x1 208 | -8/Materials | Discovered new exit (range 5) 220 | -8/Materials | Entered Factory 220 | -7/Factory | Evolved 2 slots: Propulsion x1, Utility x1 310 | -7/Factory | Build established: Mutant 329 | -7/Factory | Sucked down chute 329 | -7/Factory | Entered Waste 343 | -7/Waste | Spotted C-40 Crusher 344 | -7/Waste | Spotted C-40 Crusher 355 | -7/Waste | Spotted C-40 Crusher 356 | -7/Waste | Spotted C-40 Crusher 357 | -7/Waste | Spotted C-40 Crusher 363 | -7/Waste | Discovered new exit (range 14) 371 | -7/Waste | Entered Factory 454 | -7/Factory | Discovered new exit (range 15) 460 | -7/Factory | Identified exit to Lower Caves 537 | -7/Factory | Discovered new exit (range 8) 604 | -7/Factory | Entered Lower Caves 605 | -7/Lower Caves | Encountered a Warlord checkpoint 635 | -7/Lower Caves | Learned Factory stockpile data 683 | -7/Lower Caves | Spotted B-75 Beast 761 | -7/Lower Caves | Discovered new exit (range 6) 763 | -7/Lower Caves | Entered another Lower Caves area 773 | -7/Lower Caves | Attracted the attention of an 0b10 checkpoint 799 | -7/Lower Caves | Identified exit to Zion 814 | -7/Lower Caves | Lost 4 parts (2n2u) 856 | -7/Lower Caves | Spotted B-75 Beast 866 | -7/Lower Caves | Core integrity fell below 50% 868 | -7/Lower Caves | Self-destructed Last Messages --------------- LOCATION=UNKNOWN GOAL=ESCAPE 00773_ Y-54 Guardian: "INTERCEPTING UNREGISTERED DERELICT." 00775_ Hacking Suite destroyed. 00775_ Adv. Treads destroyed. 00783_ Critical hit (Destroy). 00783_ Imp. Light Armor Plating destroyed. 00792_ S-27 Virus destroyed. 00799_ Acquired derelict log, extracted data. 00804_ CL-6JV(S) destroyed. 00825_ Destroyed VTOL Module. 00825_ S-27 Virus destroyed. 00828_ Imp. Grenade Launcher destroyed. 00829_ The unstable cave ceiling collapses. 00856_ Searching scrap... 00856_ Found Imp. Salvage Targeting Computer. 00856_ Found 11 Matter. 00862_ Acquired 11 matter. 00865_ Hacking Suite destroyed. 00867_ Critical hit (Burn: +37). Map ----- +----------------------------------------------------+ | ?????????????????????# ?????# ###???????# | | ?????????????????????# #???### ##??????# | | ?????????????????????# #?### #??????? | | ?????????????????????# ### #??????? | | ?????????????????????# ## ## #??????? | | ?????????????????????# ## #### % # #??? | | ?????????????????????# #??# ##??? | | ?????????????????????# #?? % #???? | | ?????????????????????####### #### #???? | | ???????????????????????????### ### # # #???? | | ??????????????????????????#### ##?####### #??? | | ?????????????????????????## ### #???????? ?? | | ????????????????????????## ## #????????? ??? | | ???????????????????????## #?????????? ??? | | ??????????????????????## g ##??????????????? | | ?????????????????????## #???????????????? | | ?????????????????????# g #####???????????? | | ????????????????????## g #???????????? | | ???????????????????## g #???????????? | | ??????????????????## #???????????? | | ??????????????????# #???????????? | | ??????????????????# ????????? | | ?????????????????## ???????? | | ?????????????????# ## " """ ???????? | | ????????????????## ### """"""" ??????? | | ????????????????# @ ## """"""??????????? | | ????????????????# " "???????????? | | ????????????????## ?????????? | | ?????????????????### % # ?????????? | | ???????????????????# # ###### #?????????? | | ???????????????????# # ###????? ??????????? | | ??????????????###??# # #?????????????????????? | | ?????????????## #### ## ????????????????????? | | ?????????????# ## ### ???????????????????? | | ??????????????# ## #??#### ?????????????????? | | ??????????????# #??????####????????????????? | | ?????????????## ! #??????????????????????????? | | ????????????## """###?????????????????????????? | | ?????????#### ## ????????????????????? | | ????????## ??????????????????? | | ????????# ??????????????????? | | ????????# " ######??????????????????? | | ????????# ## ## ###???????????????????????? | | ????????##??##### #?????????????????????????? | | ????????????????########?????????????????????????? | | ?????????????????????????????????????????????????? | | ?????????????????????????????????????????????????? | | ?????????????????????????????????????????????????? | | ?????????????????????????????????????????????????? | | ?????????????????????????????????????????????????? | +----------------------------------------------------+ Best States ------------- Heat Dissipation 34 Energy Generation 5 Energy Capacity 100 Matter Stores 300 Matter Capacity 300 Sight Range 16 Terrain Scan Density 10 Armor Coverage 150 Propulsion Shielding 66 Evasion (%) 50 Core Analysis 9 Recoil Reduction 3 Offensive Hacking 20 Item Schematics ----------------- None Robot Schematics ------------------ None Fabricated ------------ Nothing Alien Tech Used ----------------- None Achievements -------------- None Challenges ------------ None Game ------ Seed AluminumCannonInterpreter Manual? 0 Play Time 00:10:53 Cumulative 247.2 hours Start 2023.05.28 @ 21:55:36 End 2023.05.28 @ 22:05:13 Sessions 1 Manual Loads 0 Difficulty Rogue Special Mode None Game No. 739 Rogue 739 Adventurer 0 Explorer 0 Win Type - Total 12 Types 8/0/2/2/0/0/0/0/0 Lore% 87 Gallery% 83 Achievement% 74 Wizard Run 0 Options --------- ASCII 0 Keyboard 0 Movement Numpad Keybinds 0 Fullscreen 1 Font 16/SmallcapsGlow Map View 75x55 Tactical HUD 1 Map Filters NONE Filters NONE Steam 1 RUN: 51c4b136-011b-4562-8d50-87d148797300